bitfinex-derivatives/quotes_SOLF0:USTF0_20240923
["timestamp","ask_amount","ask_price","bid_price","bid_amount"]
[1727053104559,2.7838,145.96,145.87,18.41]
[1727053105365,6.2094,145.96,145.93,3.4261]
[1727053105664,1.3805,145.97,145.9,18.41]
[1727053105856,3.4254,145.96,145.92,3.4263]
[1727053106054,1.3805,145.97,145.9,18.41]
[1727053107155,3.50023257,145.98,145.9,18.41]
[1727053107359,1.3394,146.01,145.9,18.41]
[1727053107652,4.7114691,146.01,145.9,18.41]
[1727053107856,1.3394,146.01,145.9,18.41]
[1727053108365,3.4253,145.97,145.9,18.41]
[1727053108562,4.70118527,146.01,145.9,18.41]
[1727053108762,4.70118527,146.01,145.92,18.41]
[1727053109263,2.78,146.02,145.95,18.41]
[1727053109466,6.1574335,146.02,145.95,18.41]
[1727053110358,6.1574335,146.02,145.92,18.41]
[1727053110560,6.1574335,146.02,145.9,18.41]
[1727053110872,22.26362827,146.02,145.9,18.41]
[1727053111057,34.51619477,146.01,145.87,18.41]
[1727053111261,18.41,145.98,145.85,18.41]
[1727053111571,17.5016753,145.97,145.85,18.41]
[1727053111773,3.4265,145.92,145.88,3.4271]
[1727053112278,3.4265,145.92,145.85,18.41]
[1727053112474,3.4265,145.92,145.89,3.4269]
[1727053112768,3.4262,145.93,145.85,18.41]
[1727053112969,3.4262,145.93,145.9,3.4266]
[1727053113475,3.4259,145.94,145.9,3.4266]
[1727053115369,3.4262,145.93,145.9,3.4266]
[1727053116681,1.3878,145.97,145.87,18.41]
[1727053117173,3.4256,145.96,145.92,3.4261]
[1727053117868,3.4256,145.96,145.93,3.426]
[1727053118078,4.8131,145.97,145.9,18.41]
[1727053118568,3.4253,145.97,145.9,18.41]
[1727053118871,3.4253,145.97,145.87,3.43287164]
[1727053118872,1.3994,146.01,145.79,3.44627723]
[1727053119071,18.41,145.95,145.82,18.41]
[1727053119274,4.1217,145.94,145.8,18.41]
[1727053119472,3.4278,145.86,145.8,18.41]
[1727053119677,7.5373052,145.94,145.82,3.4285]
[1727053120268,3.4278,145.86,145.82,3.4285]
[1727053120472,18.41,145.9,145.77,18.41]
[1727053120767,3.4283,145.84,145.77,18.41]
[1727053120966,3.4283,145.84,145.79,3.4292]
[1727053121668,3.4279,145.86,145.8,18.41]
[1727053122175,3.428,145.85,145.81,3.4287]
[1727053122565,18.41,145.93,145.8,21.8391]
[1727053122762,3.4282,145.85,145.8,21.8391]
[1727053122969,3.4282,145.85,145.8,18.41]
[1727053123370,3.4282,145.85,145.81,3.4287]
[1727053125374,3.4282,145.84,145.8,3.4291]
[1727053125577,3.4038857,145.86,145.77,18.41]
[1727053125774,2.6977,145.85,145.75,18.41]
[1727053125974,3.4292,145.8,145.77,3.4297]
[1727053126473,3.4292,145.8,145.75,18.41]
[1727053126675,1.3932,145.84,145.75,18.41]
[1727053127069,3.4285,145.83,145.79,3.4292]
[1727053127977,2.6977,145.85,145.77,18.41]
[1727053128382,6.1257,145.85,145.81,3.4287]
[1727053128877,6.1257,145.85,145.82,3.4286]
[1727053129074,1.3932,145.93,145.8,18.41]
[1727053129075,18.41,145.92,145.8,18.41]
[1727053129277,21.1984,145.92,145.8,18.41]
[1727053129684,21.1984,145.92,145.84,3.4282]
[1727053130183,3.4273,145.88,145.83,3.4283]
[1727053130977,3.4271,145.89,145.82,18.41]
[1727053131181,3.4271,145.89,145.84,3.4281]
[1727053132081,3.4269,145.9,145.85,3.4279]
[1727053132472,3.4266,145.91,145.86,3.4275]
[1727053132679,2.7884,145.92,145.86,3.4275]
[1727053133480,2.7884,145.92,145.85,3.4279]
[1727053134178,21.1984,145.92,145.8,18.41]
[1727053134775,21.1984,145.92,145.81,3.4287]
[1727053135184,21.1984,145.92,145.8,18.41]
[1727053135381,2.7884,145.92,145.8,18.41]
[1727053135581,2.7884,145.92,145.82,18.41]
[1727053135985,3.4274,145.88,145.83,3.4283]
[1727053137075,3.4274,145.88,145.84,3.4282]
[1727053139586,21.1984,145.92,145.8,18.41]
[1727053139888,21.1984,145.92,145.77,117.49319318]
[1727053140093,3.4286,145.83,145.79,3.4293]
[1727053140385,3.4865217,145.85,145.77,117.49319318]
[1727053140591,3.4288,145.82,145.78,3.4296]
[1727053140786,3.4288,145.82,145.77,99.08319318]
[1727053140991,18.41,145.9,145.77,99.08319318]
[1727053141297,3.4285,145.83,145.79,3.4292]
[1727053141592,3.4285,145.83,145.77,99.08319318]
[1727053141988,28.0514,145.92,145.78,18.41]
[1727053142886,3.4281,145.85,145.81,3.4288]
[1727053144593,3.4282,145.84,145.81,3.4288]
[1727053146501,21.1984,145.92,145.83,3.4284]
[1727053146796,21.1984,145.92,145.8,18.41]
[1727053146998,3.4281,145.85,145.81,3.4287]
[1727053147696,3.4278,145.86,145.82,3.4286]
[1727053148696,21.1984,145.92,145.81,3.4288]
[1727053149098,3.4281,145.85,145.81,3.4288]
[1727053149998,3.4278,145.86,145.8,18.41]
[1727053152908,3.4278,145.86,145.83,3.4283]
[1727053153701,21.1984,145.92,145.82,3.4286]
[1727053154307,3.4281,145.85,145.82,3.4286]
[1727053155009,14.3084,145.92,145.82,11.52]
[1727053155209,2.7884,145.92,145.84,11.52]
[1727053155403,2.7884,145.92,145.86,11.52]
[1727053156001,3.4269,145.9,145.86,11.52]
[1727053156412,2.7884,145.92,145.86,11.52]
[1727053156712,2.7884,145.92,145.86,14.9476]
[1727053157112,3.427,145.9,145.86,14.9476]
[1727053160913,2.7884,145.92,145.85,3.4279]
[1727053161317,11.52,145.9,145.82,11.52]
[1727053161506,11.52,145.9,145.82,14.9484]
[1727053161816,11.52,145.9,145.82,11.52]
[1727053162212,3.4279,145.86,145.83,3.4284]
[1727053164413,3.428,145.85,145.82,14.9486]
[1727053166022,3.4278,145.86,145.83,3.4284]
[1727053166510,11.52,145.9,145.83,3.4284]
[1727053167218,3.428,145.85,145.82,14.9486]
[1727053167427,11.52,145.88,145.8,11.52]
[1727053168519,3.4283,145.84,145.81,3.4287]
[1727053169220,3.49841538,145.86,145.78,11.52]
[1727053169516,11.52,145.88,145.78,11.52]
[1727053169822,11.52,145.84,145.65,11.52]
[1727053170122,11.52,145.84,145.73,11.52]
[1727053170123,11.52,145.82,145.73,11.52]
[1727053171019,11.52,145.82,145.75,3.4303]
[1727053171605,3.4295,145.79,145.76,3.43]
[1727053173126,4.176,145.83,145.64,85.67310294]
[1727053173127,11.52,145.78,145.64,85.67310294]
[1727053173310,16.1282183,145.82,145.64,3.37310294]
[1727053173513,16.1282183,145.82,145.58,82.32]
[1727053173514,4.176,145.83,145.67,11.52]
[1727053173711,4.176,145.83,145.58,97.24002745]
[1727053173915,4.176,145.83,145.71,11.52]
[1727053174219,11.52,145.79,145.69,11.52]
[1727053174416,3.4307,145.74,145.69,11.52]
[1727053174616,11.52,145.79,145.69,11.52]
[1727053175024,11.52,145.79,145.7,3.4315]
[1727053175415,11.52,145.79,145.69,11.52]
[1727053175621,3.4305,145.75,145.69,14.9515]
[1727053175820,6.8957344,145.75,145.69,11.52]
[1727053176024,3.4305,145.75,145.69,11.52]
[1727053176223,11.52,145.79,145.69,11.52]
[1727053176920,4.176,145.83,145.71,11.52]
[1727053177121,11.52,145.82,145.71,11.52]
[1727053177319,11.52,145.82,145.73,3.4307]
[1727053177918,3.4298,145.78,145.73,3.4307]
[1727053178118,11.52,145.78,145.68,11.52]
[1727053178417,2.7618,145.77,145.68,11.52]
[1727053178729,3.431,145.72,145.68,14.9519]
[1727053179022,3.38139886,145.72,145.66,11.52]
[1727053179232,3.4314,145.71,145.66,14.9523]
[1727053179825,3.4314,145.71,145.67,3.4322]
[1727053180028,3.4311,145.72,145.67,3.4322]
[1727053180229,16.35334346,145.76,145.66,11.52]
[1727053180532,4.83334346,145.76,145.68,11.52]
[1727053180824,3.4303,145.75,145.7,11.52]
[1727053181127,3.4303,145.75,145.71,3.4312]
[1727053181728,4.7571,145.76,145.72,3.431]
[1727053181920,4.7571,145.76,145.7,11.52]
[1727053181921,1.327,145.76,145.7,11.52]
[1727053182319,1.327,145.76,145.66,3.39331491]
[1727053182320,4.7572,145.76,145.72,3.431]
[1727053182721,1.327,145.76,145.69,18.46]
[1727053183230,3.4303,145.75,145.71,3.431]
[1727053183529,6.1918,145.77,145.71,3.4312]
[1727053183836,2.7618,145.77,145.71,18.46]
[1727053184137,19.8694,145.83,145.74,3.4303]
[1727053184339,2.7409,145.82,145.74,3.4303]
[1727053185839,3.4297,145.78,145.74,3.4303]
[1727053187237,3.4297,145.78,145.71,18.46]
[1727053187238,3.4301,145.76,145.72,3.4309]
[1727053188940,3.4301,145.76,145.73,3.4308]
[1727053189136,2.7409,145.82,145.69,3.38505309]
[1727053189336,2.7409,145.82,145.68,18.46]
[1727053189539,3.4297,145.78,145.74,3.4304]
[1727053190139,3.4314,145.71,145.67,3.432]
[1727053190339,3.37201122,145.74,145.64,18.46]
[1727053190548,18.46,145.75,145.61,18.46]
[1727053190845,1.3385,145.73,145.66,3.4324]
[1727053191443,3.4317,145.7,145.66,3.4324]
[1727053191743,1.3385,145.73,145.64,18.46]
[1727053191935,3.4312,145.72,145.64,18.46]
[1727053192734,3.4312,145.72,145.68,3.4318]
[1727053193138,1.3385,145.73,145.56,92.72716828]
[1727053193338,1.3385,145.73,145.65,3.4325]
[1727053193547,19.7985,145.73,145.65,3.4325]
[1727053193749,3.4319,145.69,145.65,3.4325]
[1727053193946,19.7985,145.73,145.58,18.46]
[1727053194442,3.4324,145.67,145.63,3.433]
[1727053194641,19.7985,145.73,145.58,18.46]
[1727053195344,19.7985,145.73,145.62,3.4332]
[1727053195852,3.4321,145.68,145.58,18.46]
[1727053196551,3.4321,145.68,145.64,3.4328]
[1727053198052,19.7985,145.73,145.61,18.46]
[1727053198053,1.3385,145.73,145.61,18.46]
[1727053198556,3.4318,145.69,145.65,3.4326]
[1727053199049,1.3385,145.73,145.65,3.4326]
[1727053199249,3.4319,145.69,145.65,3.4326]
[1727053199754,3.4318,145.69,145.65,3.4326]
[1727053200052,1.3385,145.73,145.67,3.4321]
[1727053201550,1.3485,145.74,145.66,18.46]
[1727053201762,19.8871,145.78,145.66,18.46]
[1727053201946,3.4303,145.75,145.66,18.46]
[1727053202249,3.4303,145.75,145.67,3.38611553]
[1727053202551,12.9671,145.78,145.69,11.54]
[1727053202746,12.9671,145.78,145.67,11.54]
[1727053202947,3.4307,145.74,145.7,3.4313]
[1727053203357,12.9671,145.78,145.67,11.54]
[1727053203860,1.4271,145.78,145.67,11.54]
[1727053204156,11.54,145.77,145.71,3.4311]
[1727053204349,11.54,145.77,145.67,11.54]
[1727053204658,3.4304,145.75,145.72,3.431]
[1727053205349,3.4302,145.76,145.73,3.4306]
[1727053205555,1.4271,145.78,145.71,11.54]
[1727053205956,3.4301,145.76,145.73,3.4306]
[1727053206257,1.4271,145.78,145.71,11.54]
[1727053206460,11.54,145.76,145.65,3.35187899]
[1727053206761,11.54,145.76,145.67,11.54]
[1727053206945,3.4302,145.76,145.73,3.4306]
[1727053207757,1.4271,145.78,145.69,11.54]
[1727053207944,12.9671,145.78,145.69,11.54]
[1727053208549,1.4271,145.78,145.71,11.54]
[1727053209157,3.4299,145.77,145.73,3.4306]
[1727053209957,3.37554045,145.84,145.73,11.54]
[1727053210159,2.7672,145.83,145.75,11.54]
[1727053210557,2.7672,145.83,145.77,11.54]
[1727053210758,12.9702,145.86,145.77,11.54]
[1727053211457,1.4302,145.86,145.79,11.54]
[1727053211759,3.50964508,145.85,145.77,11.54]
[1727053212061,12.9702,145.86,145.77,11.54]
[1727053212754,3.4285,145.83,145.79,3.4292]
[1727053212955,3.3734733,145.86,145.81,11.54]
[1727053213554,11.54,145.91,145.81,11.54]
[1727053214157,15.6216,145.93,145.83,11.54]
[1727053214352,15.6216,145.93,145.84,3.428]
[1727053215059,3.427,145.9,145.86,3.4277]
[1727053216060,4.0816,145.93,145.87,11.54]
[1727053216253,11.54,145.98,145.89,11.54]
[1727053216563,2.8403,145.97,145.88,18.44]
[1727053216859,3.426,145.94,145.9,3.4267]
[1727053217251,2.8403,145.97,145.88,18.44]
[1727053217461,2.8403,145.97,145.91,3.4264]
[1727053217462,3.4257,145.95,145.91,3.4264]
[1727053217958,2.8403,145.97,145.88,18.44]
[1727053218152,2.8403,145.97,145.85,18.44]
[1727053218354,3.4264,145.92,145.88,3.4271]
[1727053218671,3.47548851,145.92,145.83,18.44]
[1727053218963,18.44,145.9,145.72,85.70127273]
[1727053219160,2.8463,145.89,145.72,85.70127273]
[1727053219657,18.44,145.88,145.76,18.44]
[1727053219958,2.8463,145.89,145.76,18.44]
[1727053220164,2.8463,145.89,145.78,18.44]
[1727053220457,2.8463,145.89,145.83,3.4284]
[1727053220859,2.8463,145.89,145.8,18.44]
[1727053221163,3.4275,145.87,145.83,3.4283]
[1727053222561,2.8463,145.89,145.8,18.44]
[1727053222755,2.8463,145.89,145.73,82.32]
[1727053223061,2.8463,145.89,145.76,18.44]
[1727053223062,18.44,145.88,145.76,18.44]
[1727053223252,18.44,145.88,145.73,100.76]
[1727053223449,16.00112239,145.87,145.73,100.76]
[1727053223664,16.00112239,145.87,145.76,3.4299]
[1727053223864,16.00112239,145.87,145.73,100.76]
[1727053224765,3.4288,145.82,145.77,3.4298]
[1727053225266,18.44,145.85,145.73,100.76]
[1727053225456,1.3949,145.84,145.7,18.44]
[1727053225655,19.8349,145.84,145.7,18.44]
[1727053225863,3.4299,145.77,145.7,18.44]
[1727053226859,3.4297,145.78,145.7,18.44]
[1727053227257,2.7008,145.8,145.7,18.44]
[1727053227462,2.7008,145.8,145.72,3.4308]
[1727053228060,3.4298,145.77,145.7,18.44]
[1727053228359,2.7008,145.8,145.7,18.44]
[1727053228858,2.7008,145.8,145.72,3.4309]
[1727053229259,3.43,145.77,145.72,3.4309]
[1727053229455,2.7008,145.8,145.71,3.4312]
[1727053229658,2.7008,145.8,145.68,18.44]
[1727053229857,3.4313,145.71,145.66,18.44]
[1727053230560,3.4313,145.71,145.67,3.4321]
[1727053230763,3.4311,145.72,145.66,18.44]
[1727053231154,3.4307,145.74,145.69,3.4317]
[1727053231467,3.4307,145.74,145.68,18.44]
[1727053231962,3.4307,145.74,145.7,3.4313]
[1727053232159,3.4307,145.74,145.64,99.16697188]
[1727053232160,1.4353,145.77,145.66,18.44]
[1727053232764,3.431,145.73,145.69,3.4317]
[1727053232962,1.4353,145.77,145.66,18.44]
[1727053233361,1.4353,145.77,145.64,99.16697188]
[1727053233362,18.44,145.76,145.64,99.16697188]
[1727053233568,18.44,145.74,145.64,99.16697188]
[1727053233761,2.7296,145.73,145.64,102.59977188]
[1727053233964,6.17051111,145.73,145.64,102.59977188]
[1727053234369,6.17051111,145.73,145.64,99.16697188]
[1727053234568,6.17051111,145.73,145.63,3.4331]
[1727053234872,18.44,145.69,145.55,18.44]
[1727053235062,1.3238,145.68,145.57,3.4344]
[1727053235466,1.3238,145.68,145.55,18.44]
[1727053235858,3.4332,145.63,145.57,18.44]
[1727053236059,1.3238,145.68,145.57,18.44]
[1727053236255,1.3238,145.68,145.58,3.4341]
[1727053236658,1.3238,145.68,145.57,18.44]
[1727053237062,3.4327,145.65,145.57,18.44]
[1727053237264,1.3238,145.68,145.59,18.44]
[1727053237670,1.3238,145.68,145.59,21.8739]
[1727053238659,3.4331,145.64,145.6,3.4338]
[1727053238966,1.3238,145.68,145.49,82.38]
[1727053239172,1.3238,145.68,145.55,18.44]
[1727053239469,19.7638,145.68,145.55,18.44]
[1727053239870,3.4341,145.59,145.56,3.4346]
[1727053240075,3.42929837,145.62,145.56,3.4346]
[1727053240379,19.7638,145.68,145.56,3.4346]
[1727053240573,3.434,145.6,145.56,3.4346]
[1727053241070,3.4335,145.62,145.55,18.44]
[1727053241768,19.7638,145.68,145.55,18.44]
[1727053241968,1.3238,145.68,145.6,18.44]
[1727053243069,1.3238,145.68,145.63,3.4331]
[1727053243874,3.4323,145.67,145.63,3.4331]
[1727053244270,1.3238,145.68,145.6,18.44]
[1727053245373,3.4325,145.66,145.62,3.4332]
[1727053245676,3.4325,145.66,145.6,18.44]
[1727053245973,6.17051111,145.73,145.62,18.44]
[1727053246174,1.3502,145.72,145.62,18.44]
[1727053246374,3.4317,145.7,145.66,3.4322]
[1727053246871,3.4317,145.7,145.56,21.79967021]
[1727053246872,3.4313,145.71,145.67,3.4321]
[1727053247264,2.7296,145.73,145.48,99.2696792]
[1727053247571,2.7296,145.73,145.58,18.44]
[1727053247572,18.44,145.71,145.58,18.44]
[1727053247772,21.81135005,145.71,145.58,18.44]
[1727053248176,21.81135005,145.71,145.63,3.4331]
[1727053248976,21.81135005,145.71,145.56,18.44]
[1727053249576,21.81135005,145.71,145.6,3.4338]
[1727053249876,21.81135005,145.71,145.56,18.44]
[1727053250065,21.81135005,145.71,145.6,3.4338]
[1727053250272,21.81135005,145.71,145.56,18.44]
[1727053250776,21.81135005,145.71,145.59,3.4339]
[1727053250971,18.44,145.68,145.56,18.44]
[1727053251182,1.3544,145.67,145.58,3.4343]
[1727053251681,1.3544,145.67,145.51,3.36070821]
[1727053251682,18.44,145.66,145.53,18.44]
[1727053251880,1.318,145.65,145.57,3.4345]
[1727053252083,3.4339,145.6,145.57,3.4345]
[1727053252481,3.4338,145.61,145.57,3.4345]
[1727053252777,2.7492,145.65,145.58,3.4343]
[1727053252980,3.4332,145.63,145.55,18.44]
[1727053253279,3.4332,145.63,145.59,3.4339]
[1727053253473,3.4332,145.63,145.55,18.44]
[1727053253783,3.4332,145.63,145.58,18.44]
[1727053253972,3.4332,145.63,145.59,3.4339]
[1727053254281,1.3544,145.67,145.6,18.44]
[1727053254580,1.3544,145.67,145.61,3.4335]
[1727053254978,1.3544,145.67,145.59,3.434]
[1727053255572,1.3544,145.67,145.57,21.8744]
[1727053255780,1.3544,145.67,145.57,18.44]
[1727053255981,3.4334,145.63,145.57,18.44]
[1727053256183,3.43915306,145.63,145.57,18.44]
[1727053256382,1.3544,145.67,145.57,18.44]
[1727053256582,3.4338,145.61,145.57,18.44]
[1727053256786,3.4338,145.61,145.57,21.8744]
[1727053257284,3.4339,145.6,145.57,21.8744]
[1727053257481,3.4339,145.6,145.57,3.4344]
[1727053257684,3.4339,145.6,145.48,99.2696792]
[1727053257685,3.4343,145.59,145.52,18.44]
[1727053258184,3.38694649,145.62,145.52,18.44]
[1727053258380,18.44,145.66,145.52,18.44]
[1727053258573,18.44,145.66,145.54,3.4351]
[1727053258774,18.44,145.66,145.52,18.44]
[1727053259676,18.44,145.66,145.56,3.4346]
[1727053260683,3.434,145.6,145.56,3.4346]
[1727053261273,3.434,145.6,145.52,18.44]
[1727053261486,3.39691113,145.61,145.52,18.44]
[1727053261684,18.44,145.64,145.52,18.44]
[1727053261876,2.8042,145.63,145.54,3.4352]
[1727053262183,6.24268773,145.63,145.52,18.44]
[1727053262381,2.8042,145.63,145.52,18.44]
[1727053262775,3.435,145.56,145.52,21.8756]
[1727053263174,18.44,145.61,145.41,3.50374493]
[1727053263376,1.3455,145.6,145.5,3.4362]
[1727053263789,1.3455,145.6,145.47,18.44]
[1727053263790,3.4357,145.52,145.49,3.4364]
[1727053263978,19.7855,145.6,145.47,18.44]
[1727053264189,18.44,145.57,145.4,3.4239093]
[1727053264376,18.44,145.52,145.39,18.44]
[1727053264575,1.3455,145.51,145.39,18.44]
[1727053264776,1.3455,145.51,145.42,18.44]
[1727053265074,1.3455,145.51,145.44,18.44]
[1727053265273,3.4367,145.48,145.43,3.4377]
[1727053265480,1.3455,145.51,145.43,3.4377]
[1727053265783,3.37609814,145.52,145.43,18.44]
[1727053266090,1.3455,145.55,145.43,18.44]
[1727053266277,4.71059436,145.55,145.43,18.44]
[1727053266779,4.71059436,145.55,145.46,18.44]
[1727053267482,2.8697,145.56,145.51,18.44]
[1727053267682,18.44,145.64,145.53,3.4353]
[1727053267683,3.4345,145.58,145.53,3.4353]
[1727053267879,4.1829,145.62,145.53,18.44]
[1727053269089,7.62841309,145.62,145.53,18.44]
[1727053269275,3.4338,145.61,145.56,3.4346]
[1727053269477,1.4155,145.62,145.55,18.44]
[1727053269681,1.3412,145.65,145.55,18.44]
[1727053269985,1.3412,145.65,145.58,18.44]
[1727053270287,3.4324,145.67,145.61,3.4334]
[1727053270480,3.4324,145.67,145.58,18.44]
[1727053271191,3.4324,145.67,145.61,3.4334]
[1727053271688,3.4324,145.67,145.62,3.4333]
[1727053272384,3.4324,145.67,145.56,18.44]
[1727053272385,1.3505,145.69,145.63,18.44]
[1727053272586,1.3412,145.7,145.63,18.44]
[1727053272788,3.4312,145.72,145.67,3.4321]
[1727053272982,7.67510263,145.75,145.65,18.44]
[1727053273186,2.8285,145.75,145.67,18.44]
[1727053273492,3.4301,145.76,145.71,3.4312]
[1727053273695,1.4362,145.84,145.7,18.44]
[1727053273696,2.8285,145.8,145.7,18.44]
[1727053273880,3.4307,145.74,145.69,3.4317]
[1727053274196,3.42483166,145.75,145.67,18.44]
[1727053274485,3.4308,145.73,145.68,3.4317]
[1727053274679,21.2685,145.8,145.67,18.44]
[1727053275290,21.2685,145.8,145.68,3.432]
[1727053275495,21.2685,145.8,145.67,18.44]
[1727053276192,21.2685,145.8,145.69,3.4317]
[1727053276587,3.4308,145.74,145.69,3.4317]
[1727053276986,3.4308,145.74,145.63,21.82838151]
[1727053276987,3.41584838,145.76,145.65,18.44]
[1727053277187,1.4035,145.75,145.62,18.44]
[1727053278181,3.4315,145.71,145.54,85.80192371]
[1727053278499,1.4035,145.75,145.64,18.44]
[1727053278793,1.4035,145.75,145.66,3.4324]
[1727053279688,1.4035,145.75,145.67,18.44]
[1727053281196,1.4035,145.75,145.64,18.44]
[1727053281587,3.4315,145.7,145.66,3.4324]
[1727053282192,3.4315,145.7,145.64,18.44]
[1727053282396,3.4315,145.7,145.65,3.4325]
[1727053282893,3.4315,145.7,145.66,3.4322]
[1727053283095,3.4313,145.71,145.64,18.44]
[1727053283294,1.4035,145.75,145.64,18.44]
[1727053283497,3.4315,145.71,145.66,3.4323]
[1727053283692,3.4315,145.71,145.64,18.44]
[1727053283993,3.43267183,145.76,145.7,3.4313]
[1727053284293,1.3494,145.79,145.69,18.44]
[1727053284491,3.4306,145.74,145.7,3.4315]
[1727053284794,1.3494,145.79,145.69,18.44]
[1727053284795,3.51540753,145.75,145.69,18.44]
[1727053284988,19.7894,145.79,145.67,3.4321]
[1727053285186,18.44,145.77,145.64,18.44]
[1727053285383,21.80572807,145.77,145.62,18.44]
[1727053285586,3.4319,145.69,145.62,18.44]
[1727053285791,21.80572807,145.77,145.62,18.44]
[1727053285998,21.80572807,145.77,145.65,18.44]
[1727053286303,3.36572807,145.77,145.65,18.44]
[1727053286489,19.7894,145.79,145.67,18.44]
[1727053286901,1.3494,145.79,145.67,18.44]
[1727053287588,1.3494,145.79,145.7,3.4315]
[1727053288289,3.4306,145.74,145.7,3.4315]
[1727053288990,3.4304,145.75,145.7,18.44]
[1727053289195,3.50122929,145.77,145.58,82.4]
[1727053289497,18.44,145.77,145.65,18.44]
[1727053289701,3.4314,145.71,145.65,18.44]
[1727053290298,21.81900556,145.77,145.67,3.4321]
[1727053290299,16.00263893,145.76,145.67,3.4321]
[1727053290895,3.4314,145.71,145.67,3.4321]
[1727053291701,3.4312,145.72,145.68,3.4319]
[1727053291902,16.00263893,145.76,145.65,18.44]
[1727053292086,16.00263893,145.76,145.64,3.4328]
[1727053292087,3.4322,145.68,145.64,3.4328]
[1727053292697,3.4322,145.68,145.63,18.44]
[1727053292899,3.4322,145.68,145.64,3.4328]
[1727053293298,3.4322,145.68,145.63,18.44]
[1727053293702,3.4318,145.69,145.63,18.44]
[1727053294095,2.8506,145.73,145.56,100.84]
[1727053294096,2.8506,145.73,145.65,18.44]
[1727053294291,3.4314,145.71,145.67,3.4321]
[1727053294497,2.8506,145.73,145.67,3.4321]
[1727053296109,2.8506,145.73,145.68,3.4318]
[1727053296705,3.4314,145.71,145.65,18.44]
[1727053296904,2.8506,145.73,145.65,18.44]
[1727053297106,3.4302,145.76,145.7,18.44]
[1727053297316,2.7815,145.81,145.7,18.44]
[1727053297502,18.8280859,145.81,145.7,18.44]
[1727053297811,3.4298,145.78,145.75,3.4303]
[1727053298106,18.8280859,145.81,145.73,18.44]
[1727053298302,3.4297,145.78,145.74,3.4304]
[1727053299200,3.4297,145.78,145.75,3.4302]
[1727053299398,16.0419841,145.84,145.75,18.44]
[1727053299708,2.8664,145.85,145.78,18.44]
[1727053300111,3.4286,145.83,145.79,3.4292]
[1727053300514,2.8664,145.85,145.8,3.4291]
[1727053300810,2.8664,145.85,145.8,18.44]
[1727053300997,1.4123,145.88,145.8,18.44]
[1727053300998,20.92385956,145.88,145.8,18.44]
[1727053301200,3.4278,145.86,145.82,3.4285]
[1727053302009,16.03777422,145.9,145.82,18.44]
[1727053302223,16.03777422,145.89,145.85,18.44]
[1727053302517,3.427,145.9,145.85,21.8679]
[1727053303602,3.427,145.89,145.85,21.8679]
[1727053303802,16.00166817,145.91,145.82,18.44]
[1727053304002,16.00166817,145.9,145.82,18.44]
[1727053304207,7.69823917,145.92,145.82,18.44]
[1727053304407,3.427,145.89,145.84,18.44]
[1727053304608,2.8348,145.92,145.84,18.44]
[1727053304812,2.8348,145.92,145.87,18.44]
[1727053305012,15.97411206,145.95,145.87,18.44]
[1727053305210,1.4457,145.96,145.87,18.44]